[Event "Turkish Women-ch Arzum 2022"]
[Site "Ayvalik"]
[Date "2022.03.09"]
[Round "6.12"]
[White "Kucuk, Aybike"]
[Black "Demirtas, Hafize"]
[Result "1/2-1/2"]
[ECO "A18"]
[WhiteElo "1439"]
[BlackElo "1779"]
[Annotator "NA RC"]
[PlyCount "125"]
[EventDate "2022.03.04"]
[EventType "swiss"]
[EventCountry "TUR"]
[SourceTitle "playchess.com"]
[Source "ChessBase"]
[SourceQuality "1"]
[TimeControl "5400+30"]

1. c4 Nf6 2. Nc3 e6 3. e4 d5 4. e5 Ne4 5. Nxe4 dxe4 6. Qg4 {[%emt 0:02:30]} Nc6 {[%emt 0:09:30]} 7. Qxe4 {[%emt 0:01:30]} Bc5 {[%emt 0:00:00]} 8. Nf3 {[%emt 0:05:30]} f6 {[%emt 0:01:00]} 9. Be2 {[%emt 0:07:30]} fxe5 {[%emt 0:02:30]} 10. O-O {[%emt 0:02:30]} Bd4 {[%emt 0:02:30]} 11. d3 {[%emt 0:04:30]} Qd6 {[%emt 0:12:30]} 12. Ng5 {[%emt 0:06:30]} Ne7 {[%emt 0:06:30]} 13. Nxh7 {[%emt 0:09:30]} g6 {[%emt 0:04:30]} 14. Nf6+ {[%emt 0:02:30]} Kd8 {[%emt 0:01:30]} 15. Bg5 {[%emt 0:05:30]} Bd7 {[%emt 0:04:30]} 16. Nxd7 {[%emt 0:08:30]} Kxd7 {[%emt 0:00:30]} 17. Rab1 {[%emt 0:00:00]} a5 {[%emt 0:07:30]} 18. a3 {[%emt 0:07:00]} Raf8 {[%emt 0:04:30]} 19. b4 {[%emt 0:04:30]} a4 {[%emt 0:03:30]} 20. c5 {[%emt 0:04:30]} Qd5 {[%emt 0:04:30]} 21. Bxe7 {[%emt 0:03:30]} Kxe7 {[%emt 0:01:30]} 22. Bf3 {[%emt 0:05:31]} Qd8 {[%emt 0:13:30]} 23. h3 {[%emt 0:07:00]} c6 {[%emt 0:00:30]} 24. Qg4 {[%emt 0:03:52]} Rf6 {[%emt 0:09:30]} 25. b5 {[%emt 0:01:27]} Bxc5 {[%emt 0:00:48]} 26. bxc6 {[%emt 0:01:26]} b6 {[%emt 0:00:24]} 27. Qxa4 {[%emt 0:05:35]} Rxf3 {[%emt 0:05:01]} 28. gxf3 {[%emt 0:00:32]} Bd4 {[%emt 0:03:06]} 29. Kg2 {[%emt 0:02:28]} Kf7 {[%emt 0:01:29]} 30. Rh1 {[%emt 0:00:34]} Qg5+ {[%emt 0:00:46]} 31. Kf1 {[%emt 0:00:05]} Qd2 {[%emt 0:00:00]} 32. Rh2 {[%emt 0:01:37]} Qxd3+ {[%emt 0:00:25]} 33. Kg2 {[%emt 0:00:00]} Qxb1 {[%emt 0:00:00]} 34. c7 {[%emt 0:00:00]} Ke7 {[%emt 0:01:39]} 35. Qa7 {[%emt 0:01:03]} Kf6 {[%emt 0:00:18]} 36. Qb8 {[%emt 0:00:18]} Rxb8 {[%emt 0:02:43]} 37. cxb8=Q {[%emt 0:00:30]} Kg7 {[%emt 0:00:23]} 38. Qd8 {[%emt 0:00:33]} Bc5 {[%emt 0:00:26]} 39. Qd7+ {[%emt 0:00:48]} Kh6 {[%emt 0:00:15]} 40. Qd2+ {[%emt 0:00:00]} Kg7 {[%emt 0:00:24]} 41. h4 {[%emt 0:00:58]} e4 {[%emt 0:00:00]} 42. fxe4 {[%emt 0:00:15]} Qxe4+ {[%emt 0:00:26]} 43. f3 {[%emt 0:00:30]} Qe5 {[%emt 0:00:30]} 44. Qd7+ {[%emt 0:00:30]} Kh6 {[%emt 0:00:30]} 45. Qd2+ {[%emt 0:00:30]} Be3 {[%emt 0:00:30]} 46. Qb4 {[%emt 0:00:30]} Bc5 {[%emt 0:00:30]} 47. Qd2+ {[%emt 0:00:30]} Kg7 {[%emt 0:00:30]} 48. Qd7+ {[%emt 0:00:30]} Kg8 {[%emt 0:00:30]} 49. Qd8+ {[%emt 0:00:30]} Kf7 {[%emt 0:00:30]} 50. Qd7+ {[%emt 0:00:30]} Be7 {[%emt 0:00:30]} 51. Rh1 {[%emt 0:00:30]} Qb2+ {[%emt 0:00:30]} 52. Kg3 {[%emt 0:00:30]} Qf6 {[%emt 0:00:30]} 53. Qc7 {[%emt 0:00:30]} Qb2 {[%emt 0:00:30]} 54. h5 {[%emt 0:00:30]} g5 {[%emt 0:00:30]} 55. h6 {[%emt 0:00:30]} Kg6 {[%emt 0:00:30]} 56. Qxe7 {[%emt 0:00:30]} Qe5+ {[%emt 0:00:30]} 57. Kf2 {[%emt 0:00:30]} Qd4+ {[%emt 0:00:30]} 58. Ke2 {[%emt 0:00:30]} Qc4+ {[%emt 0:00:30]} 59. Kd2 {[%emt 0:00:30]} Qd4+ {[%emt 0:00:30]} 60. Ke2 {[%emt 0:00:30]} Qe5+ {[%emt 0:00:30]} 61. Kd1 {[%emt 0:00:30]} Qd4+ {[%emt 0:00:30]} 62. Ke1 {[%emt 0:00:30]} Qe3+ {[%emt 0:00:30]} 63. Kd1 {[%emt 0:00:30]} 1/2-1/2

[Event "Turkish Women-ch Arzum 2022"]
[Site "Ayvalik"]
[Date "2022.03.09"]
[Round "6.13"]
[White "Acar, Ilayda"]
[Black "Yurdakul, Didem Nuray"]
[Result "1/2-1/2"]
[ECO "B52"]
[WhiteElo "1460"]
[BlackElo "1804"]
[Annotator "NA RC"]
[PlyCount "149"]
[EventDate "2022.03.04"]
[EventType "swiss"]
[EventCountry "TUR"]
[SourceTitle "playchess.com"]
[Source "ChessBase"]
[SourceQuality "1"]
[TimeControl "5400+30"]

{[%evp 16,132,35,34,35,39,28,40,35,49,36,29,62,61,69,71,75,-6,-8,-12,-2,-7,0,-26,-27,-27,-27,-54,-48,-44,-47,-48,-53,-57,-63,-41,-17,-26,-25,-59,-52,-57,-26,-33,-37,-40,-6,-5,0,0,0,0,32767,32767,32767,32767,32767,32767,32767,32767,32767,32767,32767,32767,222,352,278,354,614,910,532,32767,32767,32767,32767,32767,32767,2493,1562,4659,1810,1356,32767,32767,32767,32767,12843,12797,5057,12843,29967,4622,1695,348,296,378,318,276,12849,448,713,345,504,12850,12850,32767,32767,32767,32767,32767,32767,32767,27999,5119,27999,29959,4614,4631,12825]} 1. e4 c5 2. Nf3 d6 3. Bb5+ Bd7 4. Bxd7+ Qxd7 5. c4 Nc6 6. Nc3 Nf6 7. d4 cxd4 8. Nxd4 g6 {[%emt 0:05:30]} 9. f3 {[%emt 0:06:00]} Bg7 {[%emt 0:01:30]} 10. Be3 {[%emt 0:00:30]} O-O {[%emt 0:00:30]} 11. O-O {[%emt 0:00:30]} Qc7 {[%emt 0:01:30]} 12. b3 {[%emt 0:01:30]} Rfc8 {[%emt 0:00:30]} 13. Qd2 {[%emt 0:03:30]} Nxd4 {[%emt 0:00:30]} 14. Bxd4 {[%emt 0:00:30]} Qa5 {[%emt 0:00:30]} 15. Rad1 {[%emt 0:02:30]} a6 {[%emt 0:02:30]} 16. Nd5 {[%emt 0:02:30]} (16. Bxf6 $16 Bxf6 17. Nd5 Qc5+ 18. Qf2) 16... Qxd2 {[%emt 0:00:30]} 17. Nxf6+ {[%emt 0:01:30]} Bxf6 {[%emt 0:01:30]} 18. Rxd2 {[%emt 0:00:30]} Kg7 {[%emt 0:01:30]} 19. f4 {[%emt 0:04:30]} Bxd4+ {[%emt 0:08:30]} 20. Rxd4 {[%emt 0:00:00]} b5 {[%emt 0:00:00]} 21. Rf2 {[%emt 0:18:00]} (21. Rc1 $11 {feels stronger.}) 21... bxc4 {[%emt 0:08:00]} 22. Rxc4 {[%emt 0:03:30]} Rxc4 {[%emt 0:00:30]} 23. bxc4 {[%emt 0:00:00]} Rc8 {[%emt 0:00:30]} 24. Rc2 {[%emt 0:00:00]} Rc5 {[%emt 0:04:30]} 25. Kf2 $1 {[%emt 0:01:30]} h5 {[%emt 0:09:30]} 26. Ke3 {[%emt 0:04:30]} Kf6 {[%emt 0:00:30]} 27. h4 {[%emt 0:02:30]} (27. Kd4 $11) 27... Ke6 {[%emt 0:01:30]} 28. Kd4 {[%emt 0:05:30]} Kd7 {[%emt 0:00:30]} 29. Rc3 {[%emt 0:06:30]} Ra5 $1 {[%emt 0:01:30]} 30. a3 {[%emt 0:00:30]} Kc6 {[%emt 0:00:30]} (30... f6 $5 {[%cal Rd7c6]}) 31. e5 {[%emt 0:02:30]} e6 {[%emt 0:02:30]} 32. exd6 {[%emt 0:05:30]} Kxd6 {[%emt 0:02:30]} 33. c5+ {[%emt 0:00:30]} Kc6 {[%emt 0:00:00]} 34. Ke5 {[%emt 0:00:30]} Rb5 {[%emt 0:02:00]} 35. Kf6 {[%emt 0:01:30]} Rb7 {[%emt 0:00:30]} 36. Ke5 {[%emt 0:00:30]} Rd7 {[%emt 0:00:00]} 37. g3 {[%emt 0:00:30]} Rd5+ {[%emt 0:01:00]} 38. Kf6 {[%emt 0:00:30]} Rf5+ {[%emt 0:00:00]} 39. Ke7 {[%emt 0:00:30]} a5 {[%emt 0:05:00]} 40. a4 {[%emt 0:05:30]} e5 {[%emt 0:12:30]} 41. fxe5 {[%emt 0:01:30]} g5 {[%emt 0:03:30] [#]} (41... Rf2 $142 42. Rb3 Rf5 43. Rb6+ Kc7) 42. hxg5 $1 {[%emt 0:08:09]} Rxe5+ {[%emt 0:01:30]} 43. Kf6 {[%emt 0:00:20]} Rd5 {[%emt 0:00:30]} 44. Rc4 {[%emt 0:00:54]} Rd7 {[%emt 0:00:30]} 45. Kg7 {[%emt 0:03:05]} Kd5 {[%emt 0:02:30]} 46. Rf4 {[%emt 0:03:17]} Kxc5 {[%emt 0:00:30]} 47. Rxf7 {[%emt 0:00:20]} Rd3 {[%emt 0:00:30]} 48. Kh6 {[%emt 0:01:23]} (48. g6 $142 Kb4 49. Rf4+ Kb3 50. Kh7) 48... Rxg3 {[%emt 0:00:30]} 49. Kxh5 {[%emt 0:00:30]} Kb4 {[%emt 0:00:30]} 50. Rf4+ {[%emt 0:00:00]} Kc5 {[%emt 0:00:00]} 51. g6 {[%emt 0:02:17]} (51. Rg4 $142 Rh3+ 52. Kg6 Kd6 53. Rf4 Ke7 54. Rf5 Rh4 55. Rxa5 Ke6 56. Ra6+ Ke5 57. Kf7) 51... Kd6 {[%emt 0:00:00]} 52. Rg4 {[%emt 0:00:00]} Rh3+ {[%emt 0:00:30]} 53. Kg5 {[%emt 0:03:24]} (53. Rh4 $142 Rg3 54. Kh6 Ke6 55. g7 Kf7 56. Rf4+ Ke6 57. Kh7 Rh3+ 58. Kg8) 53... Ke7 {[%emt 0:00:00]} 54. Re4+ $2 {[%emt 0:00:34]} (54. Rf4 Rg3+ 55. Kh6 (55. Rg4 Rxg4+ 56. Kxg4 Kf6 $11)) 54... Kf8 {[%emt 0:00:00]} 55. Rf4+ {[%emt 0:01:06]} Kg7 {[%emt 0:00:30]} 56. Rf7+ {[%emt 0:00:30]} Kg8 {[%emt 0:00:30]} 57. Ra7 {[%emt 0:00:25]} Rg3+ {[%emt 0:00:00]} 58. Kf5 {[%emt 0:00:39]} Rf3+ {[%emt 0:00:00]} 59. Kg4 {[%emt 0:00:00]} Rf6 {[%emt 0:00:30]} 60. Kg5 {[%emt 0:00:11]} Rf1 {[%emt 0:00:30]} 61. Rxa5 {[%emt 0:00:30]} Rg1+ {[%emt 0:00:30]} 62. Kf6 {[%emt 0:00:30]} Rf1+ {[%emt 0:00:30]} 63. Rf5 {[%emt 0:00:00]} Rc1 {[%emt 0:00:00]} 64. a5 {[%emt 0:00:14]} Rc6+ {[%emt 0:00:00]} 65. Kg5 {[%emt 0:00:16]} Rc1 {[%emt 0:00:30]} 66. a6 $18 {[%emt 0:02:27]} (66. Rb5 $142 Rg1+ 67. Kf6 Rf1+ 68. Ke7 Ra1 69. Kd6 Kg7 70. Kc7 Kxg6 71. Rb6+ Kh5 72. a6) 66... Rg1+ {[%emt 0:00:30]} 67. Kf6 {[%emt 0:00:30]} Ra1 {[%emt 0:00:00]} 68. Re5 {[%emt 0:00:43]} Rxa6+ {[%emt 0:00:00]} 69. Kg5 {[%emt 0:00:04]} Ra1 {[%emt 0:00:30]} 70. Re8+ {[%emt 0:00:47]} Kg7 {[%emt 0:00:30]} 71. Re7+ {[%emt 0:00:30]} Kg8 {[%emt 0:00:00]} 72. Kh6 {[%emt 0:00:01]} Rh1+ {[%emt 0:00:00]} 73. Kg5 {[%emt 0:00:30]} Rg1+ {[%emt 0:00:30]} 74. Kf6 {[%emt 0:00:30]} Rf1+ {[%emt 0:00:00]} 75. Ke5 {[%emt 0:00:00]} 1/2-1/2

[Event "Turkish Women-ch Arzum 2022"]
[Site "Ayvalik"]
[Date "2022.03.09"]
[Round "6.14"]
[White "Keskinler, Ela"]
[Black "Kayis, Gulcan Sena"]
[Result "0-1"]
[ECO "B13"]
[WhiteElo "1400"]
[BlackElo "1597"]
[Annotator "NA RC"]
[PlyCount "50"]
[EventDate "2022.03.04"]
[EventType "swiss"]
[EventCountry "TUR"]
[SourceTitle "playchess.com"]
[Source "ChessBase"]
[SourceQuality "1"]
[TimeControl "5400+30"]

1. e4 c6 2. Nc3 d5 3. d4 Nf6 4. exd5 cxd5 {[%emt 0:05:30]} 5. Nf3 {[%emt 0:07:00]} Nc6 {[%emt 0:03:30]} 6. h3 {[%emt 0:00:30]} Bf5 {[%emt 0:02:30]} 7. Be3 {[%emt 0:04:30]} e6 {[%emt 0:03:30]} 8. Qd2 {[%emt 0:01:30]} Qb6 {[%emt 0:09:30]} 9. Na4 {[%emt 0:05:30]} Qb4 {[%emt 0:05:30]} 10. b3 {[%emt 0:07:30]} Bxc2 {[%emt 0:02:30]} 11. Qxb4 {[%emt 0:01:30]} Bxb4+ {[%emt 0:00:30]} 12. Bd2 {[%emt 0:00:30]} O-O {[%emt 0:04:30]} 13. Rc1 {[%emt 0:02:30]} Be4 {[%emt 0:09:30]} 14. Bxb4 {[%emt 0:08:30]} Nxb4 {[%emt 0:00:30]} 15. Nc3 {[%emt 0:01:30]} Rac8 {[%emt 0:03:30]} 16. Kd2 {[%emt 0:00:30]} Bg6 {[%emt 0:02:30]} 17. a3 {[%emt 0:03:30]} Rxc3 {[%emt 0:02:30]} 18. Kxc3 {[%emt 0:01:30]} Na2+ {[%emt 0:00:30]} 19. Kb2 {[%emt 0:00:30]} Nxc1 {[%emt 0:00:00]} 20. Kxc1 {[%emt 0:00:00]} Rc8+ {[%emt 0:00:00]} 21. Kb2 {[%emt 0:03:00]} Rc2+ {[%emt 0:00:30]} 22. Ka1 {[%emt 0:01:30]} Rxf2 {[%emt 0:01:30]} 23. Rg1 {[%emt 0:04:30]} Ne4 {[%emt 0:00:30]} 24. Kb1 {[%emt 0:14:30]} Nc3+ {[%emt 0:00:30]} 25. Kc1 {[%emt 0:00:00]} Rc2# {[%emt 0:00:00]} 0-1

[Event "Turkish Women-ch Arzum 2022"]
[Site "Ayvalik"]
[Date "2022.03.09"]
[Round "6.15"]
[White "Ozer, Melike Busra"]
[Black "Karatiken, Seray"]
[Result "0-1"]
[ECO "B44"]
[WhiteElo "1300"]
[BlackElo "1717"]
[Annotator "NA RC"]
[PlyCount "112"]
[EventDate "2022.03.04"]
[EventType "swiss"]
[EventCountry "TUR"]
[SourceTitle "playchess.com"]
[Source "ChessBase"]
[SourceQuality "1"]
[TimeControl "5400+30"]

1. e4 c5 2. Nf3 e6 3. d4 cxd4 4. Nxd4 Nc6 5. c4 Nf6 6. Nc3 Bb4 {[%emt 0:05:30]} 7. Nxc6 {[%emt 0:06:00]} bxc6 {[%emt 0:00:00]} 8. Bd3 {[%emt 0:00:30]} e5 {[%emt 0:00:00]} 9. O-O {[%emt 0:01:30]} Bc5 {[%emt 0:00:30]} 10. Bg5 {[%emt 0:02:30]} h6 {[%emt 0:01:30]} 11. Bh4 {[%emt 0:02:30]} d6 {[%emt 0:00:30]} 12. a3 {[%emt 0:02:30]} a5 {[%emt 0:01:30]} 13. Kh1 {[%emt 0:01:30]} O-O {[%emt 0:00:30]} 14. Qd2 {[%emt 0:03:30]} Be6 {[%emt 0:12:30]} 15. f4 {[%emt 0:05:30]} Nxe4 {[%emt 0:05:30]} 16. Qe1 {[%emt 0:10:30]} Ng5 {[%emt 0:29:30]} 17. fxg5 {[%emt 0:06:30]} hxg5 {[%emt 0:00:30]} 18. Bf2 {[%emt 0:00:30]} Bxf2 {[%emt 0:00:30]} 19. Rxf2 {[%emt 0:01:30]} f5 {[%emt 0:00:30]} 20. Rd1 {[%emt 0:03:30]} e4 {[%emt 0:03:30]} 21. Rfd2 {[%emt 0:00:30]} Ra7 {[%emt 0:05:30]} 22. Bf1 {[%emt 0:12:30]} Rd7 {[%emt 0:01:30]} 23. b4 {[%emt 0:00:30]} d5 {[%emt 0:03:30]} 24. cxd5 {[%emt 0:02:30]} cxd5 {[%emt 0:01:30]} 25. Nxd5 {[%emt 0:01:30]} Rxd5 {[%emt 0:05:30]} 26. Bc4 {[%emt 0:00:30]} Rxd2 {[%emt 0:01:30]} 27. Bxe6+ {[%emt 0:00:30]} Kh7 {[%emt 0:00:30]} 28. Qxd2 {[%emt 0:06:30]} Qf6 {[%emt 0:01:30]} 29. Bd5 {[%emt 0:00:30]} axb4 {[%emt 0:01:30]} 30. axb4 {[%emt 0:00:30]} Re8 {[%emt 0:01:38]} 31. Qe3 {[%emt 0:07:30]} Rd8 {[%emt 0:02:45]} 32. Qe1 {[%emt 0:01:30]} Qe5 {[%emt 0:01:38]} 33. Bc6 {[%emt 0:00:30]} Rf8 {[%emt 0:02:32]} 34. b5 {[%emt 0:01:30]} e3 {[%emt 0:00:50]} 35. Qe2 {[%emt 0:00:30]} Kg6 {[%emt 0:03:09]} 36. g3 {[%emt 0:02:30]} Rh8 {[%emt 0:01:32]} 37. Kg2 {[%emt 0:00:30]} f4 {[%emt 0:03:35]} 38. Qd3+ {[%emt 0:01:58]} Kh5 {[%emt 0:03:34]} 39. Re1 {[%emt 0:07:59]} Qb2+ {[%emt 0:02:45]} 40. Re2 {[%emt 0:00:15]} Qf6 {[%emt 0:00:02]} 41. Qe4 {[%emt 0:03:37]} Kh6 {[%emt 0:00:37]} 42. Kf3 {[%emt 0:04:45]} g4+ {[%emt 0:00:39]} 43. Kxg4 {[%emt 0:01:10]} Qg5+ {[%emt 0:00:17]} 44. Kf3 {[%emt 0:00:31]} Qh5+ {[%emt 0:00:43]} 45. g4 {[%emt 0:00:40]} Qh3+ {[%emt 0:00:53]} 46. Kxf4 {[%emt 0:00:04]} Rf8+ {[%emt 0:00:49]} 47. Ke5 {[%emt 0:00:36]} Qf1 {[%emt 0:00:26]} 48. Qxe3+ {[%emt 0:00:08]} Kh7 {[%emt 0:00:25]} 49. Be4+ {[%emt 0:00:30]} Kh8 {[%emt 0:00:03]} 50. Kd4 {[%emt 0:02:55]} Rd8+ {[%emt 0:00:22]} 51. Kc5 {[%emt 0:00:24]} Qf8+ {[%emt 0:00:22]} 52. Kc4 {[%emt 0:00:23]} Qf7+ {[%emt 0:00:24]} 53. Kb4 {[%emt 0:00:19]} Qe7+ {[%emt 0:00:10]} 54. Qc5 {[%emt 0:00:06]} Rd4+ {[%emt 0:00:30]} 55. Ka5 {[%emt 0:00:46]} Qxc5 {[%emt 0:00:00]} 56. Bc6 {[%emt 0:00:29]} Qa7# {[%emt 0:00:00]} 0-1

[Event "Turkish Women-ch Arzum 2022"]
[Site "Ayvalik"]
[Date "2022.03.09"]
[Round "6.16"]
[White "Gonultas, Bakriya Anastasiya"]
[Black "Kipik, Feyza"]
[Result "0-1"]
[ECO "B30"]
[WhiteElo "1232"]
[BlackElo "1603"]
[Annotator "NA RC"]
[PlyCount "88"]
[EventDate "2022.03.04"]
[EventType "swiss"]
[EventCountry "TUR"]
[SourceTitle "playchess.com"]
[Source "ChessBase"]
[SourceQuality "1"]
[TimeControl "5400+30"]

1. e4 c5 2. Bc4 Nc6 3. Nf3 g6 4. Ng5 Ne5 5. Be2 {[%emt 0:04:00]} Bg7 {[%emt 0:07:00]} 6. O-O {[%emt 0:00:30]} h6 {[%emt 0:07:30]} 7. Nh3 {[%emt 0:06:30]} d6 {[%emt 0:08:30]} 8. f4 {[%emt 0:00:30]} Nc6 {[%emt 0:01:30]} 9. Nf2 {[%emt 0:03:30]} Nf6 {[%emt 0:02:30]} 10. Nc3 {[%emt 0:01:30]} b6 {[%emt 0:04:30]} 11. d3 {[%emt 0:07:30]} Bb7 {[%emt 0:01:30]} 12. Bf3 {[%emt 0:00:30]} Nd4 {[%emt 0:06:30]} 13. Be3 {[%emt 0:03:30]} Nxf3+ {[%emt 0:01:30]} 14. Qxf3 {[%emt 0:00:30]} d5 {[%emt 0:01:30]} 15. e5 {[%emt 0:04:30]} Nh7 {[%emt 0:04:30]} 16. Bd2 {[%emt 0:00:30]} Qd7 {[%emt 0:01:30]} 17. Qg3 {[%emt 0:02:30]} O-O-O {[%emt 0:04:30]} 18. a4 {[%emt 0:00:30]} g5 {[%emt 0:02:30]} 19. a5 {[%emt 0:05:30]} b5 {[%emt 0:01:30]} 20. a6 {[%emt 0:01:30]} Bc6 {[%emt 0:00:30]} 21. b4 {[%emt 0:01:30]} Rdg8 {[%emt 0:02:30]} 22. bxc5 {[%emt 0:01:30]} gxf4 {[%emt 0:01:30]} 23. Qxf4 {[%emt 0:00:00]} Ng5 {[%emt 0:03:30]} 24. Rae1 {[%emt 0:03:00]} d4 {[%emt 0:03:30]} 25. Nce4 {[%emt 0:01:30]} Bxe5 {[%emt 0:01:30]} 26. Qg4 {[%emt 0:01:30]} f5 {[%emt 0:02:30]} 27. Qd1 {[%emt 0:05:30]} fxe4 {[%emt 0:01:30]} 28. Bxg5 {[%emt 0:07:30]} Rxg5 {[%emt 0:04:30]} 29. dxe4 {[%emt 0:00:30]} Rhg8 {[%emt 0:01:30]} 30. g3 {[%emt 0:03:30]} Qc7 {[%emt 0:04:30]} 31. Nh3 {[%emt 0:10:30]} R5g7 {[%emt 0:01:30]} 32. Rf3 {[%emt 0:07:08]} h5 {[%emt 0:05:03]} 33. Ref1 {[%emt 0:02:15]} Qd7 {[%emt 0:02:13]} 34. Rf8+ {[%emt 0:03:23]} Kc7 {[%emt 0:00:15]} 35. Qd2 {[%emt 0:01:52]} Qxh3 {[%emt 0:05:40]} 36. Qa5+ {[%emt 0:01:26]} Kd7 {[%emt 0:00:07]} 37. Qd8+ {[%emt 0:00:34]} Ke6 {[%emt 0:00:05]} 38. Rxg8 {[%emt 0:06:26]} Bxg3 {[%emt 0:03:00]} 39. Rf6+ {[%emt 0:01:54]} Kxf6 {[%emt 0:01:11]} 40. Qf8+ {[%emt 0:00:34]} Ke6 {[%emt 0:01:13]} 41. Rxg7 {[%emt 0:02:01]} Qxh2+ {[%emt 0:00:06]} 42. Kf1 {[%emt 0:00:38]} Qh1+ {[%emt 0:00:30]} 43. Ke2 {[%emt 0:00:30]} Qxe4+ {[%emt 0:00:00]} 44. Kf1 {[%emt 0:00:37]} Qe1# {[%emt 0:00:00]} 0-1

[Event "Turkish Women-ch Arzum 2022"]
[Site "Ayvalik"]
[Date "2022.03.09"]
[Round "6.17"]
[White "Dal, Nurseda"]
[Black "Salt, Ilayda"]
[Result "0-1"]
[ECO "B22"]
[WhiteElo "1116"]
[BlackElo "1594"]
[Annotator "NA RC"]
[PlyCount "38"]
[EventDate "2022.03.04"]
[EventType "swiss"]
[EventCountry "TUR"]
[SourceTitle "playchess.com"]
[Source "ChessBase"]
[SourceQuality "1"]
[TimeControl "5400+30"]

1. e4 c5 2. c3 Nc6 3. Nf3 g6 4. d4 cxd4 5. cxd4 Bg7 6. Nc3 d6 {[%emt 0:02:30]} 7. Bb5 {[%emt 0:10:00]} Bd7 {[%emt 0:01:30]} 8. O-O {[%emt 0:00:30]} Nf6 {[%emt 0:01:30]} 9. Bxc6 {[%emt 0:02:30]} Bxc6 {[%emt 0:00:30]} 10. d5 {[%emt 0:01:30]} Bd7 {[%emt 0:00:30]} 11. h3 {[%emt 0:00:30]} O-O {[%emt 0:00:30]} 12. Bf4 {[%emt 0:02:30]} b5 {[%emt 0:03:30]} 13. Nd4 {[%emt 0:01:30]} b4 {[%emt 0:01:30]} 14. Nce2 {[%emt 0:03:30]} Nxe4 {[%emt 0:00:30]} 15. Rb1 {[%emt 0:12:30]} a5 {[%emt 0:02:30]} 16. Bh2 {[%emt 0:00:30]} Qb6 {[%emt 0:00:30]} 17. Qd3 {[%emt 0:01:30]} Nf6 {[%emt 0:00:30]} 18. Qf3 {[%emt 0:02:30]} Rac8 {[%emt 0:01:30]} 19. Rfd1 {[%emt 0:02:30]} Bb5 {[%emt 0:04:30]} 0-1

[Event "Turkish Women-ch Arzum 2022"]
[Site "Ayvalik"]
[Date "2022.03.09"]
[Round "6.18"]
[White "Karatiken, Beray"]
[Black "Gur, Tuba"]
[Result "1-0"]
[ECO "B26"]
[WhiteElo "1380"]
[BlackElo "1750"]
[Annotator "NA RC"]
[PlyCount "49"]
[EventDate "2022.03.04"]
[EventType "swiss"]
[EventCountry "TUR"]
[SourceTitle "playchess.com"]
[Source "ChessBase"]
[SourceQuality "1"]
[TimeControl "5400+30"]

1. e4 c5 2. d3 Nc6 3. Be3 d6 4. Nc3 g6 5. g3 Bg7 6. Bg2 Nd4 7. Qd2 {[%emt 0:07:00]} Nf6 {[%emt 0:09:00]} 8. h3 {[%emt 0:03:30]} e5 {[%emt 0:04:30]} 9. Nce2 {[%emt 0:06:30]} O-O {[%emt 0:15:30]} 10. Nxd4 {[%emt 0:04:30]} cxd4 {[%emt 0:00:00]} 11. Bh6 {[%emt 0:00:00]} Be6 {[%emt 0:04:00]} 12. g4 {[%emt 0:04:00]} Qb6 {[%emt 0:10:30]} 13. b3 {[%emt 0:02:30]} Rac8 {[%emt 0:04:30]} 14. Bxg7 {[%emt 0:03:30]} Kxg7 {[%emt 0:00:30]} 15. Ne2 {[%emt 0:00:30]} Rc7 {[%emt 0:01:30]} 16. f4 {[%emt 0:00:30]} exf4 {[%emt 0:03:30]} 17. Nxf4 {[%emt 0:00:30]} Rfc8 {[%emt 0:00:30]} 18. Nxe6+ {[%emt 0:01:30]} fxe6 {[%emt 0:00:30]} 19. Rc1 {[%emt 0:00:30]} Nd7 {[%emt 0:06:30]} 20. O-O {[%emt 0:02:30]} Ne5 {[%emt 0:00:30]} 21. Qg5 {[%emt 0:01:30]} Re8 {[%emt 0:04:30]} 22. Rf2 {[%emt 0:05:30]} Nxd3 {[%emt 0:00:00]} 23. cxd3 {[%emt 0:01:30]} Rxc1+ {[%emt 0:04:00]} 24. Qxc1 {[%emt 0:00:30]} h6 {[%emt 0:00:30]} 25. Qf4 {[%emt 0:00:30]} 1-0

[Event "Turkish Women-ch Arzum 2022"]
[Site "Ayvalik"]
[Date "2022.03.09"]
[Round "6.19"]
[White "Alagoz, Zumra Meryem"]
[Black "Bursali, Ela"]
[Result "1-0"]
[ECO "D15"]
[WhiteElo "1573"]
[BlackElo "1353"]
[Annotator "NA RC"]
[PlyCount "93"]
[EventDate "2022.03.04"]
[EventType "swiss"]
[EventCountry "TUR"]
[SourceTitle "playchess.com"]
[Source "ChessBase"]
[SourceQuality "1"]
[TimeControl "5400+30"]

1. d4 d5 2. c4 c6 3. Nf3 dxc4 4. g3 Bf5 {[%emt 0:06:30]} 5. Nc3 {[%emt 0:04:00]} Nf6 {[%emt 0:00:30]} 6. Bg2 {[%emt 0:02:30]} Nbd7 {[%emt 0:05:30]} 7. a4 {[%emt 0:02:30]} e6 {[%emt 0:01:30]} 8. O-O {[%emt 0:02:30]} Bb4 {[%emt 0:02:30]} 9. Nd2 {[%emt 0:02:30]} Nb6 {[%emt 0:22:30]} 10. Nde4 {[%emt 0:20:30]} Nxe4 {[%emt 0:01:30]} 11. Nxe4 {[%emt 0:01:30]} O-O {[%emt 0:06:30]} 12. Nc3 {[%emt 0:22:30]} Bg6 {[%emt 0:06:30]} 13. e4 {[%emt 0:03:30]} f6 {[%emt 0:03:30]} 14. Be3 {[%emt 0:14:30]} Rc8 {[%emt 0:03:30]} 15. Qe2 {[%emt 0:02:59]} c5 {[%emt 0:00:30]} 16. Rfd1 {[%emt 0:01:10]} cxd4 {[%emt 0:01:30]} 17. Bxd4 {[%emt 0:00:13]} Qe7 {[%emt 0:00:30]} 18. Nb5 {[%emt 0:03:16]} Bc5 {[%emt 0:03:30]} 19. a5 {[%emt 0:03:27]} Bxd4 {[%emt 0:05:30]} 20. Nxd4 {[%emt 0:02:04]} Nd7 {[%emt 0:00:30]} 21. Nb5 {[%emt 0:01:38]} a6 {[%emt 0:01:30]} 22. Nd6 {[%emt 0:00:20]} Rc7 {[%emt 0:02:30]} 23. Nxc4 {[%emt 0:00:34]} Qc5 {[%emt 0:01:30]} 24. Bf1 {[%emt 0:02:29]} Bh5 {[%emt 0:01:30]} 25. g4 {[%emt 0:00:05]} Qg5 {[%emt 0:00:30]} 26. h3 {[%emt 0:00:56]} Bf7 {[%emt 0:01:30]} 27. Qe3 {[%emt 0:00:57]} Qxe3 {[%emt 0:01:30]} 28. Nxe3 {[%emt 0:00:04]} Nc5 {[%emt 0:00:00]} 29. Rac1 {[%emt 0:00:51]} Rfc8 {[%emt 0:00:00]} 30. b4 {[%emt 0:00:39]} Nd7 {[%emt 0:00:30]} 31. Rxc7 {[%emt 0:01:03]} Rxc7 {[%emt 0:00:30]} 32. f4 {[%emt 0:00:52]} Kf8 {[%emt 0:00:30]} 33. Kf2 {[%emt 0:02:29]} Ke7 {[%emt 0:00:30]} 34. Bc4 {[%emt 0:00:50]} Nb8 {[%emt 0:05:14]} 35. f5 {[%emt 0:02:02]} e5 {[%emt 0:02:04]} 36. Bxf7 {[%emt 0:00:30]} Kxf7 {[%emt 0:00:00]} 37. Rd2 {[%emt 0:01:15]} Nc6 {[%emt 0:02:11]} 38. Nd5 {[%emt 0:01:17]} Rd7 {[%emt 0:00:25]} 39. Rc2 {[%emt 0:00:13]} Rd8 {[%emt 0:02:08]} 40. Rc5 {[%emt 0:00:29]} Ra8 {[%emt 0:01:46]} 41. Ke3 {[%emt 0:00:45]} Rd8 {[%emt 0:00:55]} 42. b5 {[%emt 0:00:46]} axb5 {[%emt 0:00:18]} 43. Rxb5 {[%emt 0:00:26]} Rd7 {[%emt 0:00:15]} 44. Rc5 {[%emt 0:00:07]} Ke8 {[%emt 0:02:16]} 45. a6 {[%emt 0:00:37]} Ne7 {[%emt 0:04:58]} 46. a7 {[%emt 0:00:23]} Rd8 {[%emt 0:00:20]} 47. Nc7+ {[%emt 0:00:16]} 1-0